Cogmind - Beta 9.4 @@@ ROGUE MODE // 2020.01.14 @ 13:44:07 // Winter2019/RPGLIKE Player: Rumbl3 Result: Destroyed by S-10 Pest with Light Assault Rifle Performance ------------- Evolutions (0) 0 Regions Visited (2) 400 Robots Destroyed (21) 105 Value Destroyed (448) 448 Prototype IDs (0) 0 Alien Tech Used (0) 0 Bonus (0) 0 TOTAL SCORE: 953 Bonus ------- None Cogmind --------- Core Integrity 0/1050 Matter 225/300 Energy 184/275 System Corruption 0% Temperature Cool (120) Movement Hovering (66) Location -10/Mines Parts ------- > --- POWER (1) -------- Deuterium Engine > --- PROPULSION (2) --- Hover Unit Combat Airjet > --- UTILITY (3) ------ Advanced Sensor Array Signal Interpreter Improved Terrain Scanner > --- WEAPON (2) ------- EM Pulse Cannon Minigun > --- INVENTORY (2) ---- Advanced Targeting Computer Autogun Peak State ------------ > --- POWER ------------ Deuterium Engine > --- PROPULSION ------- Hover Unit Combat Airjet > --- UTILITY ---------- Advanced Sensor Array Signal Interpreter Improved Terrain Scanner > --- WEAPON ----------- EM Pulse Cannon Minigun > --- INVENTORY -------- Autogun Autogun [Rating: 21] Favorites ----------- Power Ion Engine Engine Ion Engine Propulsion Hover Unit Leg Aluminum Leg Wheel Wheel Hover Unit Hover Unit Utility Improved Terrain Scanner Device Improved Terrain Scanner Processor Signal Interpreter Weapon Autogun Energy Gun Small Laser Energy Cannon EM Pulse Cannon Ballistic Gun Autogun Build | -11 -10 -10 ------- Run | Scr Mat Min Slots Evolved 4 | 3 1 . Power . | . . . Propulsion 1 | 1 . . Utility 2 | 1 1 . Weapon 1 | 1 . . Parts Attached 22 | 6 10 6 Power 4 | 1 2 1 Engine 4 | 1 2 1 Core . | . . . Reactor . | . . . Propulsion 8 | 2 4 2 Treads . | . . . Leg . | . . . Wheel 2 | 2 . . Hover 6 | . 4 2 Flight . | . . . Utility 5 | 2 2 1 Device 3 | 1 1 1 Storage . | . . . Processor 2 | 1 1 . Hackware . | . . . Protection . | . . . Artifact . | . . . Weapon 5 | 1 2 2 Energy Gun . | . . . Energy Cannon 1 | . . 1 Ballistic Gun 4 | 1 2 1 Ballistic Cannon . | . . . Launcher . | . . . Special Weapon . | . . . Impact Weapon . | . . . Slashing Weapon . | . . . Piercing Weapon . | . . . Special Melee Weapon . | . . . Unidentified Prototypes . | . . . Parts Lost 2 | . . 2 Power . | . . . Propulsion 2 | . . 2 Utility . | . . . Weapon . | . . . Highest Loss Streak 2 | . . 2 Average Slot Usage (%) 99 | . 99 98 Engine 13 | . 13 12 Wheel 2 | . 4 . Hover 23 | . 23 23 Device 24 | . 23 25 Processor 8 | . 5 12 Energy Gun 1 | . 2 . Energy Cannon 2 | . . 5 Ballistic Gun 22 | . 25 19 Naked Turns . | . . . Heaviest Build 20 | 8 13 20 Greatest Support 33 | 31 31 33 Greatest Overweight (x) 1 | . 1 1 Average Overweight (x) . | . . . Largest Inventory Capacity 2 | 2 2 2 Average Capacity 1 | 1 2 2 Most Carried 2 | 2 2 2 Average Carried 1 | . 1 1 Final Capacity 2 | 2 2 2 Final Carried 2 | 2 2 2 Class Distribution -------------------- 41% | Scavenger-Scout 36% | Scavenger-Mutant 17% | Mutant 4% | Skirmisher Dominant Class ---------------- Scavenger-Mutant | -10/Materials Scavenger-Scout | -10/Mines Resources | -11 -10 -10 ----------- Run | Scr Mat Min Matter Collected 696 | 257 333 106 Remotely . | . . . Salvage Created 658 | 95 501 62 Parts 53 | 5 43 5 Haulers Intercepted 1 | . 1 . Recyclers Shooed . | . . . Parts Field Recycled . | . . . Retrieved Matter . | . . . Parts Self-Destructed . | . . . Prevented . | . . . Kills | -11 -10 -10 ------- Run | Scr Mat Min Combat Hostiles Destroyed 14 | . 11 3 Guns 14 | . 11 3 Classes Destroyed 7 | 2 5 . Tunneler 1 | 1 . . Hauler 1 | . 1 . Recycler 1 | 1 . . Operator 2 | . 2 . Watcher 2 | . 2 . Swarmer 5 | . 3 2 Grunt 9 | . 8 1 Best Kill Streak 6 | 2 6 2 Combat Bots Only 5 | . 5 2 Max Kills in Single Turn 1 | 1 1 1 Gunslinging . | . . . Exploded . | . . . Melee . | . . . Uniques/NPCs Destroyed . | . . . Combat | -11 -10 -10 -------- Run | Scr Mat Min Damage Taken 1635 | . 389 1246 Core 1342 | . 320 1022 Absorbed by Shields . | . . . Redirected to Core 961 | . 212 749 Core Remaining (%) 100 | 100 . . Volleys Fired 58 | 7 35 16 Largest 2 | 2 2 2 Hottest 88 | 60 60 88 Shots Fired 113 | 14 67 32 Gun 110 | 14 67 29 Cannon 3 | . . 3 Launcher . | . . . Special . | . . . Kinetic 100 | 7 64 29 Thermal 10 | 7 3 . Explosive . | . . . Electromagnetic 3 | . . 3 Robot Hit Streak 14 | 4 14 7 Robot Miss Streak 4 | 2 4 4 Penetration Max . | . . . Secondary Targets 1 | . 1 . Max Gunslinging Chain 1 | . 1 . Shots Hit Robots 77 | 9 50 18 Core Hits 30 | 4 23 3 Critical Hits 1 | . 1 . Critical Kills 1 | . 1 . Critical Parts Destroyed . | . . . Melee Attacks . | . . . Impact . | . . . Slashing . | . . . Piercing . | . . . Sneak Attacks . | . . . Combat Hostiles . | . . . Follow-up Attacks . | . . . Damage Inflicted 1028 | 79 694 255 Guns 1007 | 79 694 234 Cannons 21 | . . 21 Explosions . | . . . Melee . | . . . Ramming . | . . . Kinetic 942 | 24 684 234 Thermal 65 | 55 10 . Explosive . | . . . Electromagnetic 21 | . . 21 Impact . | . . . Slashing . | . . . Piercing . | . . . Highest Corruption . | . . . Average Corruption . | . . . Corruption Purged . | . . . Overload Shots . | . . . Overflow Damage . | . . . Projectiles . | . . . Explosions . | . . . Melee . | . . . Knockbacks . | . . . Impact . | . . . Kinetic . | . . . Secondary . | . . . Self-Inflicted Damage . | . . . Shots . | . . . Rammed . | . . . Targets Rammed . | . . . Kicked . | . . . Crushed . | . . . Highest Temperature 138 | 40 59 138 Average Temperature 20 | 20 18 24 Received Heat Transfer 180 | . 174 6 Siege Activations . | . . . Robots Corrupted . | . . . Combat Hostiles . | . . . Parts Fried . | . . . Impact Corruptions . | . . . Robots Melted . | . . . Combat Hostiles . | . . . Parts Melted . | . . . Heat Transferred 150 | 125 25 . Parts Sabotaged . | . . . Parts Stolen . | . . . Parts Stripped . | . . . Power Chain Reactions . | . . . Missiles Intercepted . | . . . Alert | -11 -10 -10 ------- Run | Scr Mat Min Peak Influence 402 | 10 402 236 Average Influence 199 | 5 223 206 Maximum Alert Level 2 | . 2 1 Low Security (%) 33 | 100 40 12 Level 1 63 | . 53 87 Level 2 3 | . 6 . Level 3 . | . . . Level 4 . | . . . Level 5 . | . . . High Security . | . . . Max Security . | . . . Squads Dispatched 4 | . 3 1 Investigation 2 | . 1 1 Extermination . | . . . Reinforcement 2 | . 2 . Assault . | . . . Garrison . | . . . Intercept . | . . . Construction Impeded . | . . . Haulers Reinforced . | . . . Stealth | -11 -10 -10 --------- Run | Scr Mat Min Distress Signals . | . . . Communications Jammed . | . . . Distress Signals . | . . . Times Spotted 27 | . 17 10 Peak Tracking Total 5 | . 5 5 Tactical Retreats 2 | . 1 1 Traps | -11 -10 -10 ------- Run | Scr Mat Min Traps Triggered 1 | . . 1 Indirectly . | . . . Trap Hack Attempts . | . . . Triggered . | . . . Disarmed . | . . . Reprogrammed . | . . . Reused . | . . . Traps Extracted . | . . . Installed . | . . . Triggered . | . . . Machines | -11 -10 -10 ---------- Run | Scr Mat Min Machines Disabled . | . . . Max in Single Turn . | . . . Machines Sabotaged . | . . . Garrisons Compromised . | . . . Overloaded Fab Kills . | . . . Fab Network Shutdowns . | . . . Hacking | -11 -10 -10 --------- Run | Scr Mat Min Machines Accessed 7 | . 5 2 Terminals 4 | . 4 . Fabricators . | . . . Repair Stations . | . . . Recycling Units 1 | . 1 . Scanalyzers . | . . . Garrison Access . | . . . Total Hacks 17 | . 15 2 Successful 11 | . 9 2 Failed 6 | . 6 . Catastrophic 1 | . 1 . Database Lockouts . | . . . Manual 12 | . 12 . Terminals 11 | . 11 . Fabricators . | . . . Repair Stations . | . . . Recycling Units 4 | . 4 . Scanalyzers . | . . . Garrison Access . | . . . Terminal Hacks 5 | . 3 2 Open Door 2 | . . 2 Locate Traps 3 | . 3 . Fabricator Hacks . | . . . Repair Station Hacks . | . . . Recycling Unit Hacks . | . . . Scanalyzer . | . . . Garrison Access Hacks . | . . . Unauthorized Hacks 15 | . 15 . Terminals 4 | . 4 . Assimilate 1 | . 1 . Botnet 2 | . 2 . Operators 1 | . 1 . Fabricators . | . . . Repair Stations . | . . . Recycling Units 2 | . 2 . Mask 1 | . 1 . Tunnel 1 | . 1 . Scanalyzers . | . . . Garrison Access . | . . . Data Cores Recovered . | . . . Used . | . . . Hacking Detections 5 | . 5 . Full Trace Events 1 | . 1 . Feedback Events . | . . . Feedback Blocked . | . . . Robot Schematics Acquired . | . . . Robots Built . | . . . Matter . | . . . Time . | . . . Total Robot Build Rating . | . . . Part Schematics Acquired . | . . . Parts Built . | . . . Matter . | . . . Time . | . . . Total Part Build Rating . | . . . Parts Repaired . | . . . Time . | . . . Parts Recycled . | . . . Recycled Matter . | . . . Retrieved Matter . | . . . Retrieved Components . | . . . Parts Scanalyzed . | . . . Part Schematics Acquired . | . . . Parts Damaged . | . . . Bothacking | -11 -10 -10 ------------ Run | Scr Mat Min Used RIF Installer . | . . . Robots Hacked . | . . . Non-combat . | . . . Combat . | . . . Robot Hacks Applied . | . . . Relay Couplers Released . | . . . Robots Rewired . | . . . Allies Hacked . | . . . Hacks Repelled . | . . . Allies | -11 -10 -10 -------- Run | Scr Mat Min Total Allies 1 | . 1 . Largest Group 1 | . 1 . Highest-Rated Group 10 | . 10 . Highest-Rated Ally 10 | . 10 . Total Orders 1 | . 1 . GOTO 1 | . 1 . Ally Attacks . | . . . Total Damage . | . . . Kills . | . . . Allies Corrupted . | . . . Allies Melted . | . . . Intel | -11 -10 -10 ------- Run | Scr Mat Min Robot Analysis Total . | . . . Derelict Logs Recovered . | . . . Drone Launches . | . . . Drone Recoveries . | . . . Exploration | -11 -10 -10 ------------- Run | Scr Mat Min Turns Passed 767 | 58 392 317 Spaces Moved 899 | 29 441 429 Core 6 | . . 6 Treads . | . . . Legs 2 | 2 . . Wheels 45 | 27 18 . Hover 846 | . 423 423 Flight . | . . . Fastest Speed 56 | 90 56 56 Average Speed 61 | 97 59 61 Slowest Speed 125 | 120 125 100 Overloaded Moves . | . . . Propulsion Burnouts . | . . . Robots Hopped . | . . . Cave-ins Triggered . | . . . Exploration Rate (%) 56 | 2 80 86 Regions Visited 2 Branch Regions 1 Pre-discovered Areas 2 | . 1 1 Known Exits Taken 1 | . 1 . Unknown Exits Taken 1 | 1 . . Scrap Searched . | . . . Spaces Dug . | . . . Terrain Destroyed . | . . . Melee . | . . . Projectile . | . . . AOE . | . . . Actions | -11 -10 -10 --------- Run | Scr Mat Min Total 1019 | 44 517 458 Wait 5 | . 4 1 Move 897 | 28 440 429 Hop . | . . . Pick Up 5 | 1 3 1 Fast Attach 15 | 6 7 2 Attach 2 | . 1 1 Detach 3 | 1 1 1 Swap 5 | . 2 3 Drop 15 | 1 10 4 Fire 58 | 7 35 16 Melee . | . . . Ram . | . . . Kick . | . . . Crush . | . . . Escape Stasis . | . . . Rewire . | . . . Trap . | . . . Miscellaneous 14 | . 14 . Route ------- -11/Scrapyard -10/Materials (discovered 3 exits: *Mat x2 / *Min) -10/Mines (discovered 2 exits: *Mat x2) History --------- Turn | Location | Event 1 | -11/Scrapyard | Discovered new exit (range 1) 7 | -11/Scrapyard | Upgraded with Propulsion slot (x1) 7 | -11/Scrapyard | Upgraded with Utility slot (x1) 7 | -11/Scrapyard | Upgraded with Weapon slot (x1) 59 | -11/Scrapyard | Entered Materials 241 | -10/Materials | Discovered new exit (range 16) 324 | -10/Materials | Discovered new exit (range 14) 380 | -10/Materials | Reached level 2 402 | -10/Materials | Discovered new exit (range 16) 413 | -10/Materials | Upgraded with Utility slot (x1) 415 | -10/Materials | Identified exit to Mines 451 | -10/Materials | Entered Mines 464 | -10/Mines | Assembled infested the area 529 | -10/Mines | Discovered new exit (range 11) 550 | -10/Mines | Learned location of Storage (-9) 564 | -10/Mines | Core integrity fell below 50% 570 | -10/Mines | Core integrity fell below 20% 581 | -10/Mines | Met a Derelict shopkeep closing up shop 636 | -10/Mines | Identified exit to Materials 659 | -10/Mines | Discovered exit to Materials (range 15) 689 | -10/Mines | Met a Derelict who couldn't figure out how to use a Trap Extractor 768 | -10/Mines | Destroyed by S-10 Pest with Light Assault Rifle Last Messages --------------- 00636_ EXIT=IDENTIFIED: MATERIALS 00659_ EXIT=FOUND: MATERIALS 00661_ K-01 Serf collects debris. 00688_ Connecting with SHOP.Sys... >>Open Door Sealed Doors opened. 00688_ Triggered Explosive Trap. 00688_ An explosion rips through the floor. 00688_ Machine disabled. 00689_ MD-8C5(g): "So I found this thing but I have no idea how to use it. And who the hell trapped this place to begin with?!" 00689_ MD-8C5(g): "I give up! Here you try, I'm outta here before something nasty happens..." 00689_ Tosses Imp. Trap Extractor to the ground. 00690_ Dropped Ion Engine. 00693_ Dropped Autogun. 00693_ Acquired Adv. Targeting Computer. 00707_ K-01 Serf collects debris. 00713_ MD-8C5(g) exits level. 00727_ K-01 Serf collects debris. Map ----- +----------------------------------------------------+ | ??#####??# #???# ??????????????? | | ##???????# ????? ??????? ????????? | | ##?????? ?? ???????????????????? | | ##????? ??? ??????????????????? | | ###??? #??????????????????????? | | #???? ##??????????????????????? | | #????##????????????????????????? | | ##??????????????????????????????? | | ##??##???????????????????????????? | | ? #????????????????????????????????? | | ? ??#?#?#????#?????????##???##?????? | | ??#??#????#??????????##?????#####?? | | ????####??#?#???? ?????????? ##? | | ????#????????#? ??##???? #?? | | ??? ????#???? ??????? ??? ### | | ?##??## ##??##? ? ? #?# | | #??#?#?## #?#?#?#??""" ### | | #?#?##?#?## x#?#???# """ #?# | | " ####??#??### #????## """ ##? | | " ##?#? ? ? #?# #??#?## #?# | | " ##### ?"?? ?##% ##?#??# """ #?# | | ##?#?? ???? ?? #?##??# """ #?? | | #????#??" ?### #?#???# """ #?? | | ###?#?# ?? #?# ##?#### #?? | | ##??? ??????? ?## #?#?####### ##### | | ?######? ?? ?## ##### @ s #??#? | | ###?#####?####### #### #???? | | ##?## ##?#?## #### s#### #??#? | | #### ##### ##?# s### ##??? | | ## ##### ## ##??? | | #####?## # ##?#? | | #### ##?#???### ##??# | | ???##### ##??#????# #?#? | | #?##???## """ ###??###### ### | | ??##??#?## """ ####???#### ##? | | ??#?#????# """ ###?#??#### #?? | | ??#????## #?####???### #### | | ####?##?# ##?#?##??#?####?#? | | ??#?#?#?## ## #????#??#??#?????? | | ###?##?#?###### ###?###?####??#??#? | | ????##????##??####?????##??##??????# | | ???#?#?#???###?#???##?????##???????? | | ?????#????#??###???#??#???##???????? | | ???#####??#??##??????#?????????????? | | | | | | | | | | | | | +----------------------------------------------------+ Best States ------------- Heat Dissipation 25 Energy Generation 14 Energy Capacity 275 Matter Stores 300 Matter Capacity 300 Sight Range 16 Robot Scan Range 18 Terrain Scan Range 16 Terrain Scan Density 210 Resistance: KI 5 Evasion (%) 53 Item Schematics ----------------- None Robot Schematics ------------------ None Fabricated ------------ Nothing Alien Tech Used ----------------- None Achievements -------------- None Challenges ------------ None RPGLIKE | -11 -10 -10 --------- Run | Scr Mat Min Levels Raised 1 | . 1 . XP Earned 5565 | 3000 1665 900 XP Spent 4475 | 2950 800 725 Upgrades 21 | 9 1 11 Propulsion Slot 1 | 1 . . Utility Slot 2 | 1 1 . Weapon Slot 1 | 1 . . Core Integrity 9 | . . 9 Mass Support 1 | 1 . . Inventory Capacity 2 | 2 . . Sensor Range 1 | 1 . . Terrain Scan Density 2 | . . 2 Ranged Accuracy 1 | 1 . . KI Resistance % 1 | 1 . . Protomatter Created 95 | . 95 . Integrity Restored 285 | . 285 . Core 285 | . 285 . Protomatter Decayed 8 | . . 8 Game ------ Seed ReinforcedSalvageAnalyzer Manual? 0 Play Time 00:19:22 Cumulative 368.0 hours Start 2020.01.14 @ 13:25:21 End 2020.01.14 @ 13:44:07 Sessions 1 Manual Loads 0 Difficulty Rogue Special Mode Winter2019/RPGLIKE Game No. 145 Rogue 145 Adventurer 0 Explorer 0 Win Type - Total 12 Types 8/1/1/2/0/0/0 Lore% 88 Gallery% 86 Achievement% 69 Wizard Run 0 Options --------- ASCII 0 Keyboard 0 Movement Numpad Keybinds 0 Fullscreen 0 Font 14/Dina Map View 76x50 Tactical HUD 1 Map Filters NONE Filters NONE Steam 1 RUN: e4c0389b-21d1-401d-b96d-ebfbc439ae18